Workbook

Sheet high precision
B2: HSL->RGB
B4: nominal values | F4: hardware values | H4: HEX | I4: coeff. to normalized | J4: control | K4: diff
B5: name | C5: range | D5: value | F5: bits | G5: value
B6: H | C6: -180°..+180° | D6: 16 | F6: 14s | G6: =INT(D6/180*2^13) -> 728 | H6: =DEC2HEX(G6) -> 2D8 | I6: 180/2^13 | J6: =G6*180/2^13 -> 15.99609375 | K6: =ABS(D6-J6) -> 0.00390625
B7: S | C7: 0..255 | D7: 189 | F7: 8 | G7: =D7 -> 189 | H7: =DEC2HEX(G7) -> BD | I7: 1 | J7: =G7 -> 189 | K7: =ABS(D7-J7) -> 0
B8: L | C8: 0..255 | D8: 105 | F8: 9 | G8: =D8*2 -> 210 | H8: D2 | I8: 1/2 | J8: =G8/2 -> 105 | K8: 0
B9: h | C9: 0°..360° | D9: =MOD((D6+360), 360) -> 16 | F9: 14 | G9: =MOD((G6+2^14), 2^14) -> 728 | H9: 2D8 | I9: 360/2^14 | J9: =G9*360/2^14 -> 15.99609375 | K9: 0.00390625
B10: s | C10: 0..1 | D10: =D7/256 -> 0.73828125
B11: l | C11: 0..1 | D11: =D8/256 -> 0.41015625
B13: 1-|2l-1| | C13: 0..1 | D13: =1-ABS(2*D11-1) -> 0.8203125 | F13: 9 | G13: =2^9-ABS(2*G8-2^9) -> 420 | H13: =DEC2HEX(G13) -> 1A4 | I13: 1/2^9 | J13: =G13/2^9 -> 0.8203125 | K13: =ABS(D13-J13) -> 0
B14: C | C14: 0..1 | D14: =D13*D10 -> 0.6056213379 | F14: 17 | G14: =G13*G7 -> 79380 | H14: 13614 | I14: 1/2^17 | J14: =G14/2^17 -> 0.6056213379 | K14: 0
B15: H' | C15: 0..5.9(9) | D15: =D9/60 -> 0.2666666667 | F15: 23 | G15: =G9*273 -> 198744 | H15: 30858 | I15: 180/2^27 | J15: =G15*180/2^27 -> 0.2665364742 | K15: 0.0001301924388
B16: H' mod 2 | C16: 0..2 | D16: =MOD(D15, 2) -> 0.2666666667 | F16: 21 | G16: =MOD(G15, (2^14*273/3)) -> 198744 | H16: 30858 | I16: 180/2^27 | J16: =G16*180/2^27 -> 0.2665364742 | K16: 0.0001301924388
B17: H' mod 2 - 1 | C17: -1..+1 | D17: =MOD(D15, 2)-1 -> -0.7333333333 | F17: 21s | G17: =G16-2^13*273/3 -> -546728 | H17: FFFFF7A858 | I17: 180/2^27 | J17: =G17*180/2^27 -> -0.7332193851 | K17: 0.0001139481862
B18: 1-|H' mod 2 - 1| | C18: 0..1 | D18: =1-ABS(D17) -> 0.2666666667 | F18: 21 | G18: =273/3*2^13-ABS(G17) -> 198744 | H18: 30858 | I18: 180/2^27 | J18: =G18*180/2^27 -> 0.2665364742 | K18: 0.0001301924388
B19: X | C19: 0..1 | D19: =D14*D18 -> 0.1614990234 | F19: 17 | G19: =INT(G14*G18*180/2^27) -> 21157 | H19: 52A5 | I19: 1/2^17 | J19: =G19/2^17 -> 0.1614151001 | K19: 8.392333984e-05
B20: R1 | C20: 0..1 | D20: =IF(D15<1, D14, IF(D15<2, D19, IF(D15<3, 0, IF(D15<4, 0, IF(D15<5, D19, D14))))) -> 0.6056213379 | F20: 17 | G20: =IF(G15<745472*1, G14, IF(G15<745472*2, G19, IF(G15<745472*3, 0, IF(G15<745472*4, 0, IF(G15<745472*5, G19, G14))))) -> 79380 | H20: 13614 | I20: 1/2^17 | J20: =G20/2^17 -> 0.6056213379 | K20: 0
B21: G1 | C21: 0..1 | D21: =IF(D15<1, D19, IF(D15<2, D14, IF(D15<3, D14, IF(D15<4, D19, IF(D15<5, 0, 0))))) -> 0.1614990234 | F21: 17 | G21: =IF(G15<745472*1, G19, IF(G15<745472*2, G14, IF(G15<745472*3, G14, IF(G15<745472*4, G19, IF(G15<745472*5, 0, 0))))) -> 21157 | H21: 52A5 | I21: 1/2^17 | J21: 0.1614151001 | K21: 8.392333984e-05
B22: B1 | C22: 0..1 | D22: =IF(D15<1, 0, IF(D15<2, 0, IF(D15<3, D19, IF(D15<4, D14, IF(D15<5, D14, D19))))) -> 0 | F22: 17 | G22: =IF(G15<745472*1, 0, IF(G15<745472*2, 0, IF(G15<745472*3, G19, IF(G15<745472*4, G14, IF(G15<745472*5, G14, G19))))) -> 0 | H22: 0 | I22: 1/2^17 | J22: 0 | K22: 0
B23: m | C23: 0..1 | D23: =D11-D14/2 -> 0.1073455811 | F23: 9 | G23: =INT(G8-G14/2/2^8) -> 54 | H23: 36 | I23: 1/2^9 | J23: =G23/2^9 -> 0.10546875 | K23: 0.001876831055
B24: R | C24: 0..255 | D24: =INT((D20+$D$23)*256) -> 182 | F24: 8 | G24: =INT(G20/2^9+$G$23/2) -> 182 | H24: B6 | I24: 1 | J24: =G24*1 -> 182 | K24: 0
B25: G | C25: 0..255 | D25: =INT((D21+$D$23)*256) -> 68 | F25: 8 | G25: =INT(G21/2^9+$G$23/2) -> 68 | H25: 44 | I25: 1 | J25: =G25*1 -> 68 | K25: 0
B26: B | C26: 0..255 | D26: =INT((D22+$D$23)*256) -> 27 | F26: 8 | G26: 27 | H26: 1B | I26: 1 | J26: 27 | K26: 0

Sheet optimized-1
B2: HSL->RGB
B4: nominal values | F4: hardware values | H4: HEX | I4: coeff. to normalized | J4: control | K4: diff
B5: name | C5: range | D5: value | F5: bits | G5: value
B6: H | C6: -180°..+180° | D6: 59.99 | F6: 14s | G6: =INT(D6/180*2^13) -> 2730 | H6: =DEC2HEX(G6) -> AAA | I6: 180/2^13 | J6: =G6*180/2^13 -> 59.98535156 | K6: =ABS(D6-J6) -> 0.0046484375
B7: S | C7: 0..255 | D7: 255 | F7: 8 | G7: =D7 -> 255 | H7: =DEC2HEX(G7) -> FF | I7: 1 | J7: =G7 -> 255 | K7: =ABS(D7-J7) -> 0
B8: L | C8: 0..255 | D8: 128 | F8: 9 | G8: =D8*2 -> 256 | H8: =DEC2HEX(G8) -> 100 | I8: 1/2 | J8: =G8/2 -> 128 | K8: 0
B9: h | C9: 0°..360° | D9: =MOD((D6+360), 360) -> 59.99 | F9: 12 | G9: =MOD((G6/2^2+2^12), 2^12) -> 682.5 | H9: =DEC2HEX(G9) -> 2AA | I9: 360/2^12 | J9: =G9*360/2^12 -> 59.98535156 | K9: 0.0046484375
B10: s | C10: 0..1 | D10: =D7/256 -> 0.99609375
B11: l | C11: 0..1 | D11: =D8/256 -> 0.5
B13: 1-|2l-1| | C13: 0..1 | D13: =1-ABS(2*D11-1) -> 1 | F13: 9 | G13: =2^9-ABS(2*G8-2^9) -> 512 | H13: =DEC2HEX(G13) -> 200 | I13: 1/2^9 | J13: =G13/2^9 -> 1 | K13: =ABS(D13-J13) -> 0
B14: C | C14: 0..1 | D14: =D13*D10 -> 0.99609375 | F14: 9 | G14: =INT(G13*G7/2^8) -> 510 | H14: 1FE | I14: 1/2^9 | J14: =G14/2^9 -> 0.99609375 | K14: 0
B15: H' | C15: 0..5.9(9) | D15: =D9/60 -> 0.9998333333 | F15: 12 | G15: =INT(G9*273/2^9) -> 363 | H15: 16B | I15: 180/2^16 | J15: =G15*180/2^16 -> 0.9970092773 | K15: 0.00282405599
B16: H' mod 2 | C16: 0..2 | D16: =MOD(D15, 2) -> 0.9998333333 | F16: 10 | G16: =MOD(G15, (2^3*273/3)) -> 363 | H16: 16B | I16: 180/2^16 | J16: =G16*180/2^16 -> 0.9970092773 | K16: 0.00282405599
B17: H' mod 2 - 1 | C17: -1..+1 | D17: =MOD(D15, 2)-1 -> -0.0001666666667 | F17: 10s | G17: =G16-2^2*273/3 -> -1 | H17: FFFFFFFFFF | I17: 180/2^16 | J17: =G17*180/2^16 -> -0.002746582031 | K17: 0.002579915365
B18: 1-|H' mod 2 - 1| | C18: 0..1 | D18: =1-ABS(D17) -> 0.9998333333 | F18: 9 | G18: =273/3*2^2-ABS(G17) -> 363 | H18: 16B | I18: 180/2^16 | J18: =G18*180/2^16 -> 0.9970092773 | K18: 0.00282405599
B19: X | C19: 0..1 | D19: =D14*D18 -> 0.9959277344 | F19: 9 | G19: =INT(G14*G18*180/2^16) -> 508 | H19: 1FC | I19: 1/2^9 | J19: =G19/2^9 -> 0.9921875 | K19: 0.003740234375
B20: R1 | C20: 0..1 | D20: =IF(D15<1, D14, IF(D15<2, D19, IF(D15<3, 0, IF(D15<4, 0, IF(D15<5, D19, D14))))) -> 0.99609375 | F20: 9 | G20: =IF(G15<364*1, G14, IF(G15<364*2, G19, IF(G15<364*3, 0, IF(G15<364*4, 0, IF(G15<364*5, G19, G14))))) -> 510 | H20: 1FE | I20: 1/2^9 | J20: =G20/2^9 -> 0.99609375 | K20: 0
B21: G1 | C21: 0..1 | D21: =IF(D15<1, D19, IF(D15<2, D14, IF(D15<3, D14, IF(D15<4, D19, IF(D15<5, 0, 0))))) -> 0.9959277344 | F21: 9 | G21: =IF(G15<364*1, G19, IF(G15<364*2, G14, IF(G15<364*3, G14, IF(G15<364*4, G19, IF(G15<364*5, 0, 0))))) -> 508 | H21: 1FC | I21: 1/2^9 | J21: =G21/2^9 -> 0.9921875 | K21: 0.003740234375
B22: B1 | C22: 0..1 | D22: =IF(D15<1, 0, IF(D15<2, 0, IF(D15<3, D19, IF(D15<4, D14, IF(D15<5, D14, D19))))) -> 0 | F22: 9 | G22: =IF(G15<364*1, 0, IF(G15<364*2, 0, IF(G15<364*3, G19, IF(G15<364*4, G14, IF(G15<364*5, G14, G19))))) -> 0 | H22: 0 | I22: 1/2^9 | J22: 0 | K22: 0
B23: m | C23: 0..1 | D23: =D11-D14/2 -> 0.001953125 | F23: 9 | G23: =INT(G8-G14/2) -> 1 | H23: 1 | I23: 1/2^9 | J23: =G23/2^9 -> 0.001953125 | K23: 0
B24: R | C24: 0..255 | D24: =INT((D20+$D$23)*256) -> 255 | F24: 8 | G24: =INT(G20/2+$G$23/2) -> 255 | H24: FF | I24: 1 | J24: =G24*1 -> 255 | K24: 0
B25: G | C25: 0..255 | D25: =INT((D21+$D$23)*256) -> 255 | F25: 8 | G25: =INT(G21/2+$G$23/2) -> 254 | H25: FE | I25: 1 | J25: =G25*1 -> 254 | K25: 1
B26: B | C26: 0..255 | D26: =INT((D22+$D$23)*256) -> 0 | F26: 8 | G26: 0 | H26: 0 | I26: 1 | J26: 0 | K26: 0

Sheet MOD
C2: division-free MOD(x, 91*2^3)
C5: formula: =MOD(G15, (2^3*273/3))
C6: MOD(G15, 91*2^3) = G15 - (91*2^3) * INT(G15 * 90 / 2^16)
C8: G15 | D8: 2456
C9: m=91*2^3 | D9: =91*2^3 -> 728
C10: int(G15/m) | D10: =INT(D8*90/2^16) -> 3 | E10: =INT(D8/D9) -> 3
C11: G15 - m * int(G15/m) | D11: =D8-D9*D10 -> 272 | E11: =MOD(D8, D9) -> 272
